[Event "Early-Titled-Tuesday-Blitz-June-18-2024"]
[Site "Chess.com"]
[Date "2024.06.18"]
[Round "2"]
[White "ALRS-SPS"]
[Black "jaskol95"]
[Result "0-1"]
[WhiteElo "2380"]
[BlackElo "2609"]
[TimeControl "180+1"]
[EndTime "8:19:45 PDT"]
[Termination "jaskol95 won by resignation"]

1. Nf3 {[%clk 0:03:00.9]} 1... d5 {[%clk 0:03:00.1]} 2. b3 {[%clk 0:03:00.6]}
2... Bg4 {[%clk 0:02:59.7]} 3. Ne5 {[%clk 0:02:59.3]} 3... Bf5 {[%clk
0:02:55.4]} 4. Bb2 {[%clk 0:02:58.6]} 4... f6 {[%clk 0:02:55.7]} 5. Nf3 {[%clk
0:02:57.2]} 5... e5 {[%clk 0:02:56.2]} 6. d3 {[%clk 0:02:56.3]} 6... Nc6 {[%clk
0:02:55.6]} 7. g3 {[%clk 0:02:52.1]} 7... Bc5 {[%clk 0:02:52.8]} 8. Bg2 {[%clk
0:02:51.1]} 8... Qd7 {[%clk 0:02:52.9]} 9. O-O {[%clk 0:02:50.3]} 9... Bh3
{[%clk 0:02:50.1]} 10. c4 {[%clk 0:02:45.4]} 10... d4 {[%clk 0:02:41.4]} 11. a3
{[%clk 0:02:42.8]} 11... a5 {[%clk 0:02:39.3]} 12. b4 {[%clk 0:02:39.4]} 12...
axb4 {[%clk 0:02:37.7]} 13. axb4 {[%clk 0:02:40.3]} 13... Rxa1 {[%clk
0:02:36.4]} 14. Bxa1 {[%clk 0:02:41.2]} 14... Bxb4 {[%clk 0:02:35]} 15. Qa4
{[%clk 0:02:37.1]} 15... Bxg2 {[%clk 0:02:27.7]} 16. Kxg2 {[%clk 0:02:30.2]}
16... Nge7 {[%clk 0:02:27.2]} 17. Qa8+ {[%clk 0:02:17.7]} 17... Qc8 {[%clk
0:02:24.4]} 18. Qa4 {[%clk 0:02:14.9]} 18... O-O {[%clk 0:02:22.8]} 19. Na3
{[%clk 0:02:13.6]} 19... Bxa3 {[%clk 0:02:12.7]} 20. Qxa3 {[%clk 0:02:13.3]}
20... Qa8 {[%clk 0:02:12.5]} 21. Qb3 {[%clk 0:02:10.9]} 21... Qa6 {[%clk
0:02:08]} 22. Rb1 {[%clk 0:02:09.1]} 22... Ra8 {[%clk 0:02:07.2]} 23. Bb2 {[%clk
0:02:06.2]} 23... Qa2 {[%clk 0:01:59.7]} 24. Bc1 {[%clk 0:01:55.2]} 24... Qxb3
{[%clk 0:01:56]} 25. Rxb3 {[%clk 0:01:55.1]} 25... b6 {[%clk 0:01:53]} 26. Ra3
{[%clk 0:01:46.6]} 26... Rxa3 {[%clk 0:01:50.7]} 27. Bxa3 {[%clk 0:01:47.5]}
27... Kf7 {[%clk 0:01:50.7]} 28. Nd2 {[%clk 0:01:43.2]} 28... Ke6 {[%clk
0:01:46.3]} 29. Nb3 {[%clk 0:01:41.5]} 29... Na5 {[%clk 0:01:42.8]} 30. Nd2
{[%clk 0:01:35.3]} 30... c5 {[%clk 0:01:41.8]} 31. Kf1 {[%clk 0:01:30.3]} 31...
Kd6 {[%clk 0:01:39.9]} 32. Ke1 {[%clk 0:01:27.5]} 32... Kc6 {[%clk 0:01:40.4]}
33. Kd1 {[%clk 0:01:27.1]} 33... b5 {[%clk 0:01:23.8]} 34. cxb5+ {[%clk
0:01:26.2]} 34... Kxb5 {[%clk 0:01:24.7]} 35. Ne4 {[%clk 0:01:20.9]} 35... Nb7
{[%clk 0:01:25]} 36. Kc2 {[%clk 0:01:18.4]} 36... Nd5 {[%clk 0:01:22.1]} 37. Kb3
{[%clk 0:01:14.2]} 37... Nb6 {[%clk 0:01:11.8]} 38. g4 {[%clk 0:01:07.4]} 38...
Kc6 {[%clk 0:01:08.6]} 39. h3 {[%clk 0:00:57.3]} 39... Kd5 {[%clk 0:01:08.2]}
40. Nd2 {[%clk 0:00:55.8]} 40... Na5+ {[%clk 0:01:00.5]} 41. Kc2 {[%clk
0:00:54.2]} 41... c4 {[%clk 0:01:00.5]} 42. dxc4+ {[%clk 0:00:50.3]} 42... Naxc4
{[%clk 0:00:58.3]} 43. Bf8 {[%clk 0:00:44.8]} 43... Nxd2 {[%clk 0:00:56.3]} 44.
Kxd2 {[%clk 0:00:45.7]} 44... g6 {[%clk 0:00:56.5]} 45. Bg7 {[%clk 0:00:45.7]}
45... f5 {[%clk 0:00:56.5]} 46. gxf5 {[%clk 0:00:44.9]} 46... gxf5 {[%clk
0:00:56.9]} 47. f3 {[%clk 0:00:43.3]} 47... Nc4+ {[%clk 0:00:53.1]} 48. Ke1
{[%clk 0:00:43.1]} 48... e4 {[%clk 0:00:52.7]} 49. fxe4+ {[%clk 0:00:43.1]}
49... fxe4 {[%clk 0:00:52.9]} 50. Bf6 {[%clk 0:00:41.3]} 50... e3 {[%clk
0:00:52]} 51. Kf1 {[%clk 0:00:40.4]} 51... Ke4 {[%clk 0:00:51.8]} 52. Kg2 {[%clk
0:00:39.8]} 52... Nd6 {[%clk 0:00:44.2]} 53. h4 {[%clk 0:00:37.4]} 53... Nf5
{[%clk 0:00:44.4]} 54. h5 {[%clk 0:00:35.2]} 54... d3 {[%clk 0:00:38.9]} 55.
exd3+ {[%clk 0:00:35.2]} 55... Kxd3 {[%clk 0:00:39.3]} 56. Bd8 {[%clk
0:00:31.7]} 56... Ke2 {[%clk 0:00:20.1]} 57. Kh3 {[%clk 0:00:18.2]} 57... Kf3
{[%clk 0:00:19.3]} 58. Ba5 {[%clk 0:00:16.9]} 58... e2 {[%clk 0:00:19]} 59. Bb4
{[%clk 0:00:14.2]} 59... Ng7 {[%clk 0:00:08]} 60. Kh4 {[%clk 0:00:13]} 60... Ne6
{[%clk 0:00:08.6]} 61. Ba5 {[%clk 0:00:10.3]} 61... h6 {[%clk 0:00:07.4]} 62.
Bb4 {[%clk 0:00:09.9]} 62... Kf2 {[%clk 0:00:07.1]} 63. Kg4 {[%clk 0:00:07.7]}
63... Nd4 {[%clk 0:00:04.5]} 64. Ba5 {[%clk 0:00:04.9]} 64... Ke3 {[%clk
0:00:04.5]} 65. Bb4 {[%clk 0:00:04.4]} 65... Ke4 {[%clk 0:00:04.9]} 66. Ba5
{[%clk 0:00:04.3]} 66... Nf3 {[%clk 0:00:05.4]} 67. Bb4 {[%clk 0:00:04]} 67...
e1=Q {[%clk 0:00:05.5]} 68. Bxe1 {[%clk 0:00:04.2]} 68... Nxe1 {[%clk
0:00:06.4]} 69. Kg3 {[%clk 0:00:04.5]} 69... Nf3 {[%clk 0:00:06.6]} 70. Kg4
{[%clk 0:00:04.5]} 70... Ne5+ {[%clk 0:00:07.3]} 71. Kg3 {[%clk 0:00:04.6]}
71... Kf5 {[%clk 0:00:08]} 72. Kh4 {[%clk 0:00:05.5]} 72... Kf4 {[%clk
0:00:08.6]} 73. Kh3 {[%clk 0:00:05.8]} 73... Kg5 {[%clk 0:00:09.3]} 0-1

[Event "Early-Titled-Tuesday-Blitz-June-18-2024"]
[Site "Chess.com"]
[Date "2024.06.18"]
[Round "2"]
[White "YurasovMat-2012"]
[Black "Rsnr"]
[Result "0-1"]
[WhiteElo "2622"]
[BlackElo "2907"]
[TimeControl "180+1"]
[EndTime "8:19:50 PDT"]
[Termination "Rsnr won by resignation"]

1. e4 {[%clk 0:03:00.9]} 1... c6 {[%clk 0:02:58.6]} 2. Nf3 {[%clk 0:02:59.9]}
2... d5 {[%clk 0:02:59.5]} 3. Nc3 {[%clk 0:02:59.7]} 3... Bg4 {[%clk 0:02:59.8]}
4. h3 {[%clk 0:02:59]} 4... Bh5 {[%clk 0:03:00.2]} 5. e5 {[%clk 0:02:51.2]} 5...
e6 {[%clk 0:02:59.9]} 6. d4 {[%clk 0:02:44.7]} 6... c5 {[%clk 0:02:59.7]} 7. Be2
{[%clk 0:02:30.4]} 7... Bxf3 {[%clk 0:02:56.7]} 8. Bxf3 {[%clk 0:02:29.7]} 8...
cxd4 {[%clk 0:02:57.4]} 9. Qxd4 {[%clk 0:02:29.8]} 9... Nc6 {[%clk 0:02:58.1]}
10. Qf4 {[%clk 0:02:29.5]} 10... Nge7 {[%clk 0:02:56.4]} 11. Qg3 {[%clk
0:02:22.8]} 11... Ng6 {[%clk 0:02:56.7]} 12. O-O {[%clk 0:02:14.9]} 12... Ngxe5
{[%clk 0:02:55.7]} 13. Be2 {[%clk 0:01:43.2]} 13... Ng6 {[%clk 0:02:53.3]} 14.
f4 {[%clk 0:01:41.4]} 14... Bd6 {[%clk 0:02:53.5]} 15. Bd3 {[%clk 0:01:37.6]}
15... O-O {[%clk 0:02:51.4]} 16. Qg4 {[%clk 0:01:26.7]} 16... f5 {[%clk
0:02:44.6]} 17. Qe2 {[%clk 0:01:26.1]} 17... Re8 {[%clk 0:02:44.6]} 18. Nd1
{[%clk 0:01:24.5]} 18... Qc7 {[%clk 0:02:41.3]} 19. Qf3 {[%clk 0:01:19.1]} 19...
Nb4 {[%clk 0:02:07.7]} 20. Be3 {[%clk 0:00:29.8]} 20... Nxd3 {[%clk 0:02:07.1]}
21. cxd3 {[%clk 0:00:30.7]} 21... Qc2 {[%clk 0:02:07.4]} 22. Nf2 {[%clk
0:00:28.5]} 22... Re7 {[%clk 0:01:43.9]} 23. g3 {[%clk 0:00:24.7]} 23... Qxb2
{[%clk 0:01:41.4]} 24. Rfb1 {[%clk 0:00:22.8]} 24... Qa3 {[%clk 0:01:41.9]} 25.
h4 {[%clk 0:00:19.7]} 25... Nf8 {[%clk 0:01:39.6]} 26. h5 {[%clk 0:00:19.5]}
26... h6 {[%clk 0:01:40.2]} 27. g4 {[%clk 0:00:19.1]} 27... fxg4 {[%clk
0:01:38.3]} 28. Qxg4 {[%clk 0:00:19.4]} 28... Rf7 {[%clk 0:01:34]} 29. Kh1
{[%clk 0:00:09.4]} 29... Re8 {[%clk 0:01:33.4]} 30. Rg1 {[%clk 0:00:09]} 30...
Bc5 {[%clk 0:01:26.3]} 31. Bxc5 {[%clk 0:00:05.7]} 31... Qxc5 {[%clk 0:01:27.2]}
32. Qg3 {[%clk 0:00:05.3]} 32... Qd4 {[%clk 0:01:22.5]} 33. Ng4 {[%clk 0:00:05]}
33... Qxf4 {[%clk 0:01:02.5]} 34. Qxf4 {[%clk 0:00:01.8]} 34... Rxf4 {[%clk
0:01:03.4]} 35. Nxh6+ {[%clk 0:00:02.2]} 35... Kh7 {[%clk 0:01:04.1]} 36. Ng4
{[%clk 0:00:02.8]} 36... Nd7 {[%clk 0:01:01.8]} 37. Raf1 {[%clk 0:00:02.1]}
37... Ref8 {[%clk 0:01:01.9]} 38. Rc1 {[%clk 0:00:02.3]} 38... R8f5 {[%clk
0:00:49.9]} 39. Rc7 {[%clk 0:00:02.8]} 39... Rxh5+ {[%clk 0:00:50.4]} 40. Nh2
{[%clk 0:00:02.7]} 40... Rf2 {[%clk 0:00:48.8]} 41. Rg2 {[%clk 0:00:03.2]} 41...
Rxg2 {[%clk 0:00:49.4]} 42. Kxg2 {[%clk 0:00:03.4]} 42... Ne5 {[%clk 0:00:47.3]}
43. d4 {[%clk 0:00:03.7]} 43... Nc6 {[%clk 0:00:47.9]} 44. Nf3 {[%clk
0:00:03.4]} 44... e5 {[%clk 0:00:20]} 45. dxe5 {[%clk 0:00:02.5]} 45... Nxe5
{[%clk 0:00:20.9]} 46. Rxb7 {[%clk 0:00:02.7]} 46... Nxf3 {[%clk 0:00:21.2]} 47.
Kxf3 {[%clk 0:00:03.6]} 47... Rh3+ {[%clk 0:00:21.7]} 48. Kf4 {[%clk 0:00:03.3]}
48... Ra3 {[%clk 0:00:22.6]} 49. Rb2 {[%clk 0:00:01]} 49... d4 {[%clk
0:00:21.2]} 50. Ke4 {[%clk 0:00:01.3]} 50... d3 {[%clk 0:00:21.9]} 51. Rd2
{[%clk 0:00:01.8]} 51... Kg6 {[%clk 0:00:19.5]} 52. Rg2+ {[%clk 0:00:02.3]}
52... Kf6 {[%clk 0:00:19.8]} 53. Rf2+ {[%clk 0:00:02.9]} 53... Ke7 {[%clk
0:00:18.9]} 54. Rg2 {[%clk 0:00:03.4]} 54... Kf7 {[%clk 0:00:19.5]} 55. Rf2+
{[%clk 0:00:03.8]} 55... Kg8 {[%clk 0:00:20.2]} 56. Rd2 {[%clk 0:00:03.5]} 56...
g6 {[%clk 0:00:19.7]} 57. Rg2 {[%clk 0:00:03.5]} 57... Kg7 {[%clk 0:00:20.3]}
58. Rd2 {[%clk 0:00:04]} 58... a5 {[%clk 0:00:20.2]} 59. Kf4 {[%clk 0:00:04]}
59... Kf6 {[%clk 0:00:20.4]} 60. Ke4 {[%clk 0:00:04.6]} 60... g5 {[%clk
0:00:20.6]} 61. Rf2+ {[%clk 0:00:04.8]} 61... Kg6 {[%clk 0:00:21.3]} 62. Rh2
{[%clk 0:00:05.1]} 62... g4 {[%clk 0:00:18.8]} 63. Kf4 {[%clk 0:00:04.5]} 63...
Ra4+ {[%clk 0:00:19.2]} 64. Ke3 {[%clk 0:00:05]} 64... Kg5 {[%clk 0:00:16.7]}
65. Kxd3 {[%clk 0:00:04.9]} 65... g3 {[%clk 0:00:17.4]} 66. Rg2 {[%clk 0:00:04]}
66... Kg4 {[%clk 0:00:17.7]} 67. Ke3 {[%clk 0:00:04.4]} 67... Kh3 {[%clk
0:00:18]} 68. Rg1 {[%clk 0:00:02]} 68... Ra3+ {[%clk 0:00:18.3]} 69. Kf4 {[%clk
0:00:02]} 69... g2 {[%clk 0:00:18.5]} 70. Rc1 {[%clk 0:00:01.7]} 70... Kh2
{[%clk 0:00:18.9]} 71. Rc2 {[%clk 0:00:02.3]} 71... Kh1 {[%clk 0:00:19.3]} 72.
Rc1+ {[%clk 0:00:02.5]} 72... g1=Q {[%clk 0:00:19.7]} 0-1

[Event "Early-Titled-Tuesday-Blitz-June-18-2024"]
[Site "Chess.com"]
[Date "2024.06.18"]
[Round "2"]
[White "Kors67"]
[Black "rollercoaster29"]
[Result "0-1"]
[WhiteElo "2282"]
[BlackElo "2511"]
[TimeControl "180+1"]
[EndTime "8:19:53 PDT"]
[Termination "rollercoaster29 won on time"]

1. e4 {[%clk 0:03:00.9]} 1... e5 {[%clk 0:02:52.8]} 2. Nf3 {[%clk 0:02:59.9]}
2... Nc6 {[%clk 0:02:53]} 3. Bc4 {[%clk 0:03:00.2]} 3... Bc5 {[%clk 0:02:50.7]}
4. b4 {[%clk 0:02:58.6]} 4... Bxb4 {[%clk 0:02:49.8]} 5. c3 {[%clk 0:02:58.9]}
5... Be7 {[%clk 0:02:48.4]} 6. d4 {[%clk 0:02:48.5]} 6... Na5 {[%clk 0:02:47.6]}
7. Nxe5 {[%clk 0:02:43.6]} 7... Nxc4 {[%clk 0:02:47.4]} 8. Nxc4 {[%clk
0:02:43.2]} 8... d5 {[%clk 0:02:47.6]} 9. exd5 {[%clk 0:02:39.3]} 9... Qxd5
{[%clk 0:02:48.5]} 10. Ne3 {[%clk 0:02:37.4]} 10... Qa5 {[%clk 0:02:48.5]} 11.
O-O {[%clk 0:02:36.5]} 11... Nf6 {[%clk 0:02:48.2]} 12. Nc4 {[%clk 0:02:33.8]}
12... Qa6 {[%clk 0:02:46.6]} 13. Ne5 {[%clk 0:02:32.6]} 13... O-O {[%clk
0:02:44.1]} 14. Re1 {[%clk 0:02:31.6]} 14... Bd6 {[%clk 0:02:33.6]} 15. Bg5
{[%clk 0:02:19.4]} 15... Nd7 {[%clk 0:02:21]} 16. Bf4 {[%clk 0:02:05.2]} 16...
Nxe5 {[%clk 0:01:38.5]} 17. Bxe5 {[%clk 0:02:02]} 17... Bf5 {[%clk 0:01:31.6]}
18. Nd2 {[%clk 0:01:58.6]} 18... Rad8 {[%clk 0:01:16.8]} 19. Qf3 {[%clk
0:01:55.5]} 19... Bg6 {[%clk 0:01:12.7]} 20. Bxd6 {[%clk 0:01:37.9]} 20... Rxd6
{[%clk 0:01:12.3]} 21. Ne4 {[%clk 0:01:38]} 21... Bxe4 {[%clk 0:01:09.2]} 22.
Rxe4 {[%clk 0:01:34.6]} 22... Rg6 {[%clk 0:00:58.1]} 23. Re7 {[%clk 0:01:26.7]}
23... Rc6 {[%clk 0:00:43.8]} 24. Rae1 {[%clk 0:01:11.7]} 24... Qxa2 {[%clk
0:00:23.9]} 25. d5 {[%clk 0:00:58.3]} 25... Rf6 {[%clk 0:00:21.5]} 26. Qg3
{[%clk 0:00:39.1]} 26... Qxd5 {[%clk 0:00:16]} 27. Qxc7 {[%clk 0:00:22]} 27...
Qd2 {[%clk 0:00:16]} 28. R7e2 {[%clk 0:00:20.6]} 28... Qd5 {[%clk 0:00:14.4]}
29. Re5 {[%clk 0:00:09.8]} 29... Qc6 {[%clk 0:00:12.3]} 30. Re7 {[%clk
0:00:07.4]} 30... Qxc7 {[%clk 0:00:08.9]} 31. Rxc7 {[%clk 0:00:07.5]} 31... Rb6
{[%clk 0:00:06.7]} 32. g3 {[%clk 0:00:07.6]} 32... a5 {[%clk 0:00:06.4]} 33.
Ree7 {[%clk 0:00:07.4]} 33... Rb8 {[%clk 0:00:05.5]} 34. Rxf7 {[%clk 0:00:05.9]}
34... Rg6 {[%clk 0:00:03.2]} 35. Rxb7 {[%clk 0:00:06]} 35... Ra8 {[%clk
0:00:02.7]} 36. Ra7 {[%clk 0:00:05.4]} 36... Rxa7 {[%clk 0:00:03]} 37. Rxa7
{[%clk 0:00:05.1]} 37... Rg5 {[%clk 0:00:03]} 38. Kg2 {[%clk 0:00:03.2]} 38...
Rc5 {[%clk 0:00:03.5]} 39. h4 {[%clk 0:00:02.8]} 39... h5 {[%clk 0:00:02.9]} 40.
Ra6 {[%clk 0:00:02.7]} 40... Kh7 {[%clk 0:00:03.2]} 41. Ra7 {[%clk 0:00:02.1]}
41... Kh6 {[%clk 0:00:03.3]} 42. Ra6+ {[%clk 0:00:02.6]} 42... g6 {[%clk
0:00:04]} 43. Kf1 {[%clk 0:00:02.8]} 43... Kg7 {[%clk 0:00:03.2]} 44. Ke2 {[%clk
0:00:03.1]} 44... Rxc3 {[%clk 0:00:02.8]} 45. Rxa5 {[%clk 0:00:03]} 45... Rc2+
{[%clk 0:00:03.4]} 46. Kf3 {[%clk 0:00:02.5]} 46... Rc4 {[%clk 0:00:03.4]} 47.
Kg2 {[%clk 0:00:03.1]} 47... Rc3 {[%clk 0:00:03.6]} 48. Rd5 {[%clk 0:00:03.6]}
48... Rc4 {[%clk 0:00:03.7]} 49. f3 {[%clk 0:00:03.9]} 49... Rc2+ {[%clk
0:00:03.7]} 50. Kh3 {[%clk 0:00:03.9]} 50... Rf2 {[%clk 0:00:04.1]} 51. f4
{[%clk 0:00:04]} 51... Kh6 {[%clk 0:00:02.7]} 52. Rd7 {[%clk 0:00:03.6]} 52...
Rf3 {[%clk 0:00:01.7]} 53. Rf7 {[%clk 0:00:04]} 53... Ra3 {[%clk 0:00:02.3]} 54.
Rf6 {[%clk 0:00:03.9]} 54... Kg7 {[%clk 0:00:02.3]} 55. Rb6 {[%clk 0:00:03.5]}
55... Kh7 {[%clk 0:00:02.8]} 56. Re6 {[%clk 0:00:03.2]} 56... Kg7 {[%clk
0:00:03]} 57. Re2 {[%clk 0:00:03.7]} 57... Ra4 {[%clk 0:00:03.2]} 58. Rc2 {[%clk
0:00:03.5]} 58... Ra3 {[%clk 0:00:03.7]} 59. Kg2 {[%clk 0:00:03.9]} 59... Ra4
{[%clk 0:00:03.9]} 60. Rc3 {[%clk 0:00:03.9]} 60... Ra2+ {[%clk 0:00:04.2]} 61.
Kf3 {[%clk 0:00:04.3]} 61... Rh2 {[%clk 0:00:04.5]} 62. Rc7+ {[%clk 0:00:02.9]}
62... Kh6 {[%clk 0:00:03.7]} 63. Rc6 {[%clk 0:00:03.4]} 63... Kg7 {[%clk
0:00:03.7]} 64. f5 {[%clk 0:00:03.4]} 64... gxf5 {[%clk 0:00:03.8]} 65. Kf4
{[%clk 0:00:03.6]} 65... Rf2+ {[%clk 0:00:03.1]} 66. Kg5 {[%clk 0:00:03.9]}
66... Rf3 {[%clk 0:00:03.4]} 0-1

[Event "Early-Titled-Tuesday-Blitz-June-18-2024"]
[Site "Chess.com"]
[Date "2024.06.18"]
[Round "2"]
[White "Hirna2005"]
[Black "AndrewMaco"]
[Result "1-0"]
[WhiteElo "2306"]
[BlackElo "2697"]
[TimeControl "180+1"]
[EndTime "8:19:56 PDT"]
[Termination "Hirna2005 won by resignation"]

1. e4 {[%clk 0:03:00.9]} 1... c6 {[%clk 0:02:58.8]} 2. Nc3 {[%clk 0:03:00.3]}
2... d5 {[%clk 0:02:58.6]} 3. Nf3 {[%clk 0:02:59.9]} 3... dxe4 {[%clk 0:02:59]}
4. Nxe4 {[%clk 0:02:59.5]} 4... Nf6 {[%clk 0:02:59.9]} 5. Qe2 {[%clk 0:02:58.9]}
5... Nxe4 {[%clk 0:03:00.2]} 6. Qxe4 {[%clk 0:02:58.8]} 6... Nd7 {[%clk
0:03:00.9]} 7. Bc4 {[%clk 0:02:58.9]} 7... Nf6 {[%clk 0:03:01.5]} 8. Ne5 {[%clk
0:02:59.2]} 8... e6 {[%clk 0:03:02.1]} 9. Qe2 {[%clk 0:02:59.2]} 9... b5 {[%clk
0:02:53.1]} 10. Bb3 {[%clk 0:02:59.2]} 10... Bd6 {[%clk 0:02:47.3]} 11. d4
{[%clk 0:02:56.4]} 11... Qc7 {[%clk 0:02:43.6]} 12. O-O {[%clk 0:02:53.8]} 12...
O-O {[%clk 0:02:35.9]} 13. Re1 {[%clk 0:02:48.7]} 13... c5 {[%clk 0:02:25.5]}
14. dxc5 {[%clk 0:02:47.1]} 14... Qxc5 {[%clk 0:02:22]} 15. c3 {[%clk 0:02:42]}
15... Bb7 {[%clk 0:02:14.6]} 16. Nf3 {[%clk 0:02:31.8]} 16... Qh5 {[%clk
0:01:56.5]} 17. h3 {[%clk 0:02:21]} 17... Bxf3 {[%clk 0:01:44]} 18. Qxf3 {[%clk
0:02:20.7]} 18... Qxf3 {[%clk 0:01:44.6]} 19. gxf3 {[%clk 0:02:21.4]} 19... Nh5
{[%clk 0:01:33.8]} 20. Be3 {[%clk 0:02:16.5]} 20... Bf4 {[%clk 0:01:22.2]} 21.
Rad1 {[%clk 0:02:12.7]} 21... a5 {[%clk 0:01:15.6]} 22. Rd7 {[%clk 0:02:08.8]}
22... a4 {[%clk 0:01:02.2]} 23. Bc2 {[%clk 0:02:08.1]} 23... a3 {[%clk
0:01:02.3]} 24. b3 {[%clk 0:02:05]} 24... Bxe3 {[%clk 0:00:52.6]} 25. fxe3
{[%clk 0:02:04.1]} 25... Rfc8 {[%clk 0:00:45.7]} 26. Red1 {[%clk 0:01:45.7]}
26... Nf6 {[%clk 0:00:37.5]} 27. R7d4 {[%clk 0:01:39.9]} 27... g5 {[%clk
0:00:35.7]} 28. c4 {[%clk 0:01:37.5]} 28... bxc4 {[%clk 0:00:29.7]} 29. Rxc4
{[%clk 0:01:37.4]} 29... Rxc4 {[%clk 0:00:29.5]} 30. bxc4 {[%clk 0:01:37.7]}
30... Rc8 {[%clk 0:00:28.8]} 31. Bb3 {[%clk 0:01:37.6]} 31... Kg7 {[%clk
0:00:28]} 32. Rd6 {[%clk 0:01:33.9]} 32... Ra8 {[%clk 0:00:22]} 33. Kf2 {[%clk
0:01:31.5]} 33... Ra5 {[%clk 0:00:21]} 34. Ke2 {[%clk 0:01:29.3]} 34... Kf8
{[%clk 0:00:21.3]} 35. Kd3 {[%clk 0:01:20.1]} 35... Ke7 {[%clk 0:00:21.6]} 36.
Rb6 {[%clk 0:01:20.3]} 36... Nd7 {[%clk 0:00:22]} 37. Rb5 {[%clk 0:01:18.1]}
37... Ra7 {[%clk 0:00:06.7]} 38. Kd4 {[%clk 0:01:13.3]} 38... h6 {[%clk
0:00:06.7]} 39. c5 {[%clk 0:01:12.2]} 39... Rc7 {[%clk 0:00:07.1]} 40. Ba4
{[%clk 0:01:08.3]} 40... Kf6 {[%clk 0:00:07]} 41. Ra5 {[%clk 0:01:04.4]} 41...
Ne5 {[%clk 0:00:07.2]} 42. Ke4 {[%clk 0:01:01.8]} 42... Ng6 {[%clk 0:00:07.4]}
43. c6 {[%clk 0:00:57.5]} 43... Ke7 {[%clk 0:00:07.9]} 44. Bb5 {[%clk
0:00:52.5]} 44... Kd6 {[%clk 0:00:08.1]} 45. Rxa3 {[%clk 0:00:52.7]} 45... f5+
{[%clk 0:00:08.7]} 46. Kd3 {[%clk 0:00:51.8]} 46... Kc5 {[%clk 0:00:07.8]} 47.
Rb3 {[%clk 0:00:49.4]} 47... Ne5+ {[%clk 0:00:07.8]} 48. Ke2 {[%clk 0:00:49.4]}
48... Kd6 {[%clk 0:00:04.8]} 49. Rc3 {[%clk 0:00:45]} 49... Nf7 {[%clk
0:00:03.8]} 50. a4 {[%clk 0:00:45]} 50... Ne5 {[%clk 0:00:04]} 51. f4 {[%clk
0:00:41.4]} 51... Ng6 {[%clk 0:00:03.8]} 52. Kf3 {[%clk 0:00:40.3]} 52... Nh4+
{[%clk 0:00:03.9]} 53. Kg3 {[%clk 0:00:39.7]} 53... Ng6 {[%clk 0:00:04.8]} 54.
Rd3+ {[%clk 0:00:39.3]} 54... Kc5 {[%clk 0:00:04.9]} 55. Rd7 {[%clk 0:00:38.7]}
55... Rc8 {[%clk 0:00:05.4]} 56. Rg7 {[%clk 0:00:37.9]} 56... Nf8 {[%clk
0:00:05.1]} 57. fxg5 {[%clk 0:00:37.6]} 57... hxg5 {[%clk 0:00:06]} 58. Rxg5
{[%clk 0:00:37.4]} 58... Kb6 {[%clk 0:00:05.7]} 59. Rg7 {[%clk 0:00:36.8]} 59...
Rd8 {[%clk 0:00:04]} 60. Rb7+ {[%clk 0:00:36.3]} 60... Kc5 {[%clk 0:00:03.7]}
61. Re7 {[%clk 0:00:34.2]} 61... Ng6 {[%clk 0:00:03.4]} 62. Rxe6 {[%clk
0:00:31.7]} 62... Nf8 {[%clk 0:00:03.3]} 63. Rf6 {[%clk 0:00:30.6]} 63... Rc8
{[%clk 0:00:03.9]} 64. Rxf5+ {[%clk 0:00:30.3]} 64... Kb6 {[%clk 0:00:04.8]} 65.
h4 {[%clk 0:00:29.8]} 65... Ne6 {[%clk 0:00:05.2]} 66. h5 {[%clk 0:00:28.1]}
66... Rg8+ {[%clk 0:00:05.7]} 67. Kf3 {[%clk 0:00:25.4]} 67... Ng7 {[%clk
0:00:04.6]} 68. Rg5 {[%clk 0:00:23.3]} 68... Rf8+ {[%clk 0:00:05.1]} 69. Ke2
{[%clk 0:00:23.5]} 69... Ne6 {[%clk 0:00:06]} 70. Rg6 {[%clk 0:00:21.9]} 70...
Nc7 {[%clk 0:00:06.5]} 71. Rg7 {[%clk 0:00:20.3]} 71... Rf5 {[%clk 0:00:06.6]}
72. h6 {[%clk 0:00:19.5]} 72... Rh5 {[%clk 0:00:07]} 73. h7 {[%clk 0:00:19.3]}
73... Rh2+ {[%clk 0:00:07.5]} 74. Kd3 {[%clk 0:00:19]} 74... Rh3 {[%clk
0:00:08.4]} 75. Kc4 {[%clk 0:00:16.6]} 75... Rh4+ {[%clk 0:00:08.5]} 76. Kb3
{[%clk 0:00:16.1]} 76... Rh3 {[%clk 0:00:08.1]} 77. Re7 {[%clk 0:00:16.2]} 77...
Nd5 {[%clk 0:00:07.8]} 78. Rb7+ {[%clk 0:00:15.5]} 78... Kc5 {[%clk 0:00:07.2]}
79. c7 {[%clk 0:00:14.7]} 79... Rxe3+ {[%clk 0:00:04.7]} 80. Kb2 {[%clk
0:00:13.5]} 1-0